[Event "Live Chess"]
[Site "Chess.com"]
[Date "2024.06.01"]
[Round "-"]
[White "NottheBishopSacrifice"]
[Black "ProfPoisson"]
[Result "1-0"]
[WhiteElo "2221"]
[BlackElo "1236"]
[TimeControl "300"]
[EndTime "10:57:01 PDT"]
[Termination "NottheBishopSacrifice won by checkmate"]

1. Nf3 {[%clk 0:04:58.5]} 1... e6 {[%clk 0:04:54.5]} 2. g3 {[%clk 0:04:58.4]}
2... f5 {[%clk 0:04:52]} 3. Bg2 {[%clk 0:04:58.3]} 3... Nf6 {[%clk 0:04:49.5]}
4. O-O {[%clk 0:04:57.9]} 4... Be7 {[%clk 0:04:46]} 5. d4 {[%clk 0:04:57.4]}
5... O-O {[%clk 0:04:44.5]} 6. c4 {[%clk 0:04:57]} 6... d6 {[%clk 0:04:39.6]} 7.
Nc3 {[%clk 0:04:55.7]} 7... Ne4 {[%clk 0:04:36.2]} 8. Qc2 {[%clk 0:04:54]} 8...
Nxc3 {[%clk 0:04:33.1]} 9. Qxc3 {[%clk 0:04:53.9]} 9... Bf6 {[%clk 0:04:29.5]}
10. Bf4 {[%clk 0:04:53.3]} 10... c5 {[%clk 0:04:23.6]} 11. Qd2 {[%clk
0:04:46.2]} 11... Qe8 {[%clk 0:04:16]} 12. dxc5 {[%clk 0:04:44.4]} 12... e5
{[%clk 0:04:09.7]} 13. Be3 {[%clk 0:04:43]} 13... dxc5 {[%clk 0:03:43.1]} 14.
Bxc5 {[%clk 0:04:42.9]} 14... Rf7 {[%clk 0:03:39.6]} 15. e4 {[%clk 0:04:37.1]}
15... Na6 {[%clk 0:03:37.6]} 16. Ba3 {[%clk 0:04:34.4]} 16... f4 {[%clk
0:03:33.7]} 17. gxf4 {[%clk 0:04:27]} 17... Bg4 {[%clk 0:02:29.4]} 18. fxe5
{[%clk 0:04:24.3]} 18... Bxf3 {[%clk 0:02:27.6]} 19. exf6 {[%clk 0:04:20.2]}
19... Bxg2 {[%clk 0:02:20.9]} 20. Kxg2 {[%clk 0:04:20.1]} 20... Qxe4+ {[%clk
0:02:18.1]} 21. f3 {[%clk 0:04:19.7]} 21... Qg6+ {[%clk 0:02:10.6]} 22. Kh1
{[%clk 0:04:18.6]} 22... Rxf6 {[%clk 0:02:05.1]} 23. Rg1 {[%clk 0:04:18.1]}
23... Qf5 {[%clk 0:02:01.6]} 24. Raf1 {[%clk 0:04:16.7]} 24... Qe6 {[%clk
0:01:47.5]} 25. Qg2 {[%clk 0:04:14.8]} 25... Rg6 {[%clk 0:01:40.9]} 26. Qc2
{[%clk 0:04:11.8]} 26... Rc8 {[%clk 0:01:33.6]} 27. Rxg6 {[%clk 0:04:08.8]}
27... hxg6 {[%clk 0:01:27.3]} 28. Rg1 {[%clk 0:04:08.2]} 28... Rxc4 {[%clk
0:01:21.3]} 29. Qxg6 {[%clk 0:04:07.5]} 29... Qf7 {[%clk 0:01:11.2]} 30. Qxf7+
{[%clk 0:04:06]} 30... Kxf7 {[%clk 0:01:09.7]} 31. Rd1 {[%clk 0:04:05.1]} 31...
Rc2 {[%clk 0:01:04.6]} 32. Rd7+ {[%clk 0:04:03.6]} 32... Ke6 {[%clk 0:01:01.8]}
33. Rxb7 {[%clk 0:04:03.5]} 33... Nc5 {[%clk 0:00:54]} 34. Rc7 {[%clk
0:03:51.6]} 34... Rc1+ {[%clk 0:00:44.9]} 35. Kg2 {[%clk 0:03:50.4]} 35... Rc2+
{[%clk 0:00:43.1]} 36. Kh3 {[%clk 0:03:49.8]} 36... Kd5 {[%clk 0:00:38.4]} 37.
Rxc5+ {[%clk 0:03:48.2]} 37... Rxc5 {[%clk 0:00:35.2]} 38. Bxc5 {[%clk
0:03:48.1]} 38... Kxc5 {[%clk 0:00:33.5]} 39. Kg4 {[%clk 0:03:48]} 39... Kc4
{[%clk 0:00:32.3]} 40. h4 {[%clk 0:03:47.9]} 40... Kd3 {[%clk 0:00:30.8]} 41. f4
{[%clk 0:03:47.3]} 41... Kc2 {[%clk 0:00:30.2]} 42. f5 {[%clk 0:03:46.9]} 42...
Kxb2 {[%clk 0:00:29.5]} 43. f6 {[%clk 0:03:46.5]} 43... gxf6 {[%clk 0:00:27.5]}
44. h5 {[%clk 0:03:46.2]} 44... a5 {[%clk 0:00:25.3]} 45. h6 {[%clk 0:03:45.8]}
45... Kxa2 {[%clk 0:00:23.5]} 46. h7 {[%clk 0:03:45.7]} 46... Kb3 {[%clk
0:00:22.8]} 47. h8=Q {[%clk 0:03:45.6]} 47... a4 {[%clk 0:00:21.2]} 48. Qxf6
{[%clk 0:03:45.5]} 48... a3 {[%clk 0:00:20.1]} 49. Qa1 {[%clk 0:03:45.4]} 49...
a2 {[%clk 0:00:18.9]} 50. Kf3 {[%clk 0:03:43.9]} 50... Kc2 {[%clk 0:00:17.5]}
51. Qxa2+ {[%clk 0:03:42.5]} 51... Kd1 {[%clk 0:00:16]} 52. Ke3 {[%clk
0:03:41.6]} 52... Ke1 {[%clk 0:00:14]} 53. Qe2# {[%clk 0:03:40.8]} 1-0

[Event "Live Chess"]
[Site "Chess.com"]
[Date "2024.06.01"]
[Round "-"]
[White "willc-h99"]
[Black "KwikPhoenix"]
[Result "1-0"]
[WhiteElo "2646"]
[BlackElo "2454"]
[TimeControl "300"]
[EndTime "10:57:07 PDT"]
[Termination "willc-h99 won by resignation"]

1. d4 {[%clk 0:04:58.6]} 1... f5 {[%clk 0:04:58.9]} 2. Bg5 {[%clk 0:04:57.3]}
2... h6 {[%clk 0:04:52.9]} 3. Bh4 {[%clk 0:04:56.4]} 3... g5 {[%clk 0:04:47.8]}
4. e3 {[%clk 0:04:55.3]} 4... Nf6 {[%clk 0:04:45.9]} 5. Bg3 {[%clk 0:04:54.7]}
5... Bg7 {[%clk 0:04:45.3]} 6. h4 {[%clk 0:04:52.4]} 6... Ne4 {[%clk 0:04:42.7]}
7. Qh5+ {[%clk 0:04:47.8]} 7... Kf8 {[%clk 0:04:41.5]} 8. hxg5 {[%clk
0:04:32.3]} 8... Nxg3 {[%clk 0:04:21.2]} 9. fxg3 {[%clk 0:04:26.9]} 9... e6
{[%clk 0:04:20.7]} 10. Nf3 {[%clk 0:04:22.5]} 10... Qe7 {[%clk 0:04:16.1]} 11.
Nh4 {[%clk 0:04:12.1]} 11... Qb4+ {[%clk 0:03:58.6]} 12. Nd2 {[%clk 0:04:07.7]}
12... Qxb2 {[%clk 0:03:42.4]} 13. Rb1 {[%clk 0:04:05.3]} 13... Qc3 {[%clk
0:03:41.3]} 14. Ng6+ {[%clk 0:04:01.6]} 14... Kg8 {[%clk 0:03:40.4]} 15. Ne7+
{[%clk 0:03:56.1]} 15... Kf8 {[%clk 0:03:38.6]} 16. Ng6+ {[%clk 0:03:39.2]}
16... Kg8 {[%clk 0:03:36.9]} 17. Nxh8 {[%clk 0:03:39.1]} 17... Qxe3+ {[%clk
0:03:29.9]} 18. Kd1 {[%clk 0:03:38.1]} 18... Kxh8 {[%clk 0:03:01.2]} 19. Qe8+
{[%clk 0:03:35.2]} 19... Bf8 {[%clk 0:02:58.2]} 1-0

[Event "Live Chess"]
[Site "Chess.com"]
[Date "2024.06.01"]
[Round "-"]
[White "Mangoalo"]
[Black "educatedlad"]
[Result "0-1"]
[WhiteElo "1013"]
[BlackElo "1758"]
[TimeControl "300"]
[EndTime "10:57:08 PDT"]
[Termination "educatedlad won by checkmate"]

1. e3 {[%clk 0:04:57.4]} 1... g6 {[%clk 0:04:59.5]} 2. Bc4 {[%clk 0:04:56.4]}
2... Bg7 {[%clk 0:04:59.4]} 3. Nc3 {[%clk 0:04:55.5]} 3... d5 {[%clk 0:04:59.3]}
4. d4 {[%clk 0:04:55]} 4... dxc4 {[%clk 0:04:58.3]} 5. Qd2 {[%clk 0:04:53.6]}
5... Nc6 {[%clk 0:04:56.9]} 6. Nge2 {[%clk 0:04:52.3]} 6... Bf5 {[%clk
0:04:55.4]} 7. O-O {[%clk 0:04:52.2]} 7... Nb4 {[%clk 0:04:54.3]} 8. a3 {[%clk
0:04:50.2]} 8... Nxc2 {[%clk 0:04:53.2]} 9. Rb1 {[%clk 0:04:48.2]} 9... Nxd4
{[%clk 0:04:50.6]} 10. Nxd4 {[%clk 0:04:46.2]} 10... Bxb1 {[%clk 0:04:49.5]} 11.
Nxb1 {[%clk 0:04:46.1]} 11... Bxd4 {[%clk 0:04:47.8]} 12. exd4 {[%clk
0:04:44.7]} 12... Nf6 {[%clk 0:04:46.6]} 13. Nc3 {[%clk 0:04:44.1]} 13... O-O
{[%clk 0:04:45.2]} 14. f4 {[%clk 0:04:42.7]} 14... c5 {[%clk 0:04:40.8]} 15. d5
{[%clk 0:04:40.4]} 15... b5 {[%clk 0:04:36.3]} 16. f5 {[%clk 0:04:39.2]} 16...
b4 {[%clk 0:04:34.7]} 17. fxg6 {[%clk 0:04:38.3]} 17... fxg6 {[%clk 0:04:33.6]}
18. axb4 {[%clk 0:04:35]} 18... cxb4 {[%clk 0:04:33.4]} 19. Rxf6 {[%clk
0:04:27.5]} 19... exf6 {[%clk 0:04:31.8]} 20. Ne4 {[%clk 0:04:26.1]} 20... Re8
{[%clk 0:04:27.7]} 21. Qd4 {[%clk 0:04:20.1]} 21... Re5 {[%clk 0:04:01.2]} 22.
Bf4 {[%clk 0:04:12.5]} 22... Rxe4 {[%clk 0:03:54.1]} 23. Qxe4 {[%clk 0:04:09]}
23... Qb6+ {[%clk 0:03:53.1]} 24. Be3 {[%clk 0:04:06.7]} 24... Qd6 {[%clk
0:03:49.5]} 25. h3 {[%clk 0:04:02.5]} 25... c3 {[%clk 0:03:47.8]} 26. bxc3
{[%clk 0:04:00.2]} 26... bxc3 {[%clk 0:03:47.7]} 27. Bh6 {[%clk 0:03:46.6]}
27... Kf7 {[%clk 0:03:39.1]} 28. g4 {[%clk 0:03:38.1]} 28... Re8 {[%clk
0:03:37.4]} 29. Qd4 {[%clk 0:03:21.4]} 29... Qg3+ {[%clk 0:03:35.7]} 30. Kf1
{[%clk 0:03:18.4]} 30... Re1# {[%clk 0:03:35.1]} 0-1

[Event "Live Chess"]
[Site "Chess.com"]
[Date "2024.06.01"]
[Round "-"]
[White "lateforthesky"]
[Black "Brooms1989"]
[Result "1-0"]
[WhiteElo "2153"]
[BlackElo "1058"]
[TimeControl "300"]
[EndTime "10:57:10 PDT"]
[Termination "lateforthesky won by resignation"]

1. e4 {[%clk 0:04:57.1]} 1... e5 {[%clk 0:04:59.5]} 2. Nf3 {[%clk 0:04:54.3]}
2... Nc6 {[%clk 0:04:58.6]} 3. Bb5 {[%clk 0:04:52.8]} 3... a6 {[%clk 0:04:57.6]}
4. Ba4 {[%clk 0:04:51.9]} 4... Nf6 {[%clk 0:04:56.6]} 5. d4 {[%clk 0:04:50.6]}
5... exd4 {[%clk 0:04:54.5]} 6. O-O {[%clk 0:04:49]} 6... b5 {[%clk 0:04:46.5]}
7. Bb3 {[%clk 0:04:47.3]} 7... d6 {[%clk 0:04:42.1]} 8. Bd5 {[%clk 0:04:41.9]}
8... Nxd5 {[%clk 0:04:37.3]} 9. exd5 {[%clk 0:04:40.6]} 9... Ne5 {[%clk
0:04:36]} 10. Nxd4 {[%clk 0:04:39.1]} 10... Be7 {[%clk 0:04:32]} 11. Nc3 {[%clk
0:04:35.6]} 11... O-O {[%clk 0:04:30.3]} 12. a4 {[%clk 0:04:34]} 12... Bd7
{[%clk 0:04:14.4]} 13. axb5 {[%clk 0:04:31.1]} 13... axb5 {[%clk 0:04:13]} 14.
Rxa8 {[%clk 0:04:21]} 14... Qxa8 {[%clk 0:04:12.9]} 15. Ndxb5 {[%clk 0:04:19.5]}
15... Qb7 {[%clk 0:03:54.5]} 16. Na3 {[%clk 0:04:08.7]} 16... f5 {[%clk
0:03:41.9]} 17. f4 {[%clk 0:03:50.7]} 17... Ng6 {[%clk 0:03:18.3]} 18. Nc4
{[%clk 0:03:41.5]} 18... Qa7+ {[%clk 0:03:12.9]} 19. Kh1 {[%clk 0:03:39.8]}
19... Bf6 {[%clk 0:02:59.7]} 20. Be3 {[%clk 0:03:36.8]} 20... Qb8 {[%clk
0:02:49.3]} 21. Bd4 {[%clk 0:03:33.9]} 21... Bb5 {[%clk 0:02:39.9]} 22. Nxb5
{[%clk 0:03:30.8]} 22... Qxb5 {[%clk 0:02:39.8]} 23. Bxf6 {[%clk 0:03:28.1]}
23... Rxf6 {[%clk 0:02:39.7]} 24. b3 {[%clk 0:03:27.1]} 24... Qd7 {[%clk
0:02:30]} 25. Qd3 {[%clk 0:03:18]} 25... Ne7 {[%clk 0:02:08.8]} 26. Re1 {[%clk
0:03:10.1]} 26... g6 {[%clk 0:02:06.7]} 27. Qd4 {[%clk 0:03:00.8]} 27... Rf8
{[%clk 0:02:00.8]} 28. Re6 {[%clk 0:02:58.2]} 28... c5 {[%clk 0:01:47.1]} 29.
Qe3 {[%clk 0:02:53.6]} 29... Nxd5 {[%clk 0:01:39.2]} 30. Qe1 {[%clk 0:02:46.2]}
30... Nxf4 {[%clk 0:01:32.8]} 31. Re7 {[%clk 0:02:45.2]} 31... Qc6 {[%clk
0:01:31.2]} 32. Qf2 {[%clk 0:02:14.7]} 32... Nh5 {[%clk 0:01:00.9]} 33. Kg1
{[%clk 0:02:04.8]} 33... Re8 {[%clk 0:00:58.3]} 34. Qe3 {[%clk 0:01:47]} 34...
Rxe7 {[%clk 0:00:41.2]} 35. Qxe7 {[%clk 0:01:45.6]} 35... Nf4 {[%clk 0:00:30.2]}
36. Ne3 {[%clk 0:01:44.6]} 36... Qe4 {[%clk 0:00:20.3]} 37. Qxe4 {[%clk
0:01:40.4]} 37... fxe4 {[%clk 0:00:20.2]} 38. g3 {[%clk 0:01:36.8]} 38... Nh5
{[%clk 0:00:17.8]} 39. Nc4 {[%clk 0:01:24.5]} 39... d5 {[%clk 0:00:15.6]} 40.
Nb6 {[%clk 0:01:20.9]} 40... d4 {[%clk 0:00:13.4]} 41. Na4 {[%clk 0:01:15.1]}
41... Nf6 {[%clk 0:00:10.1]} 42. Nxc5 {[%clk 0:01:12.8]} 42... e3 {[%clk
0:00:07.7]} 43. Kf1 {[%clk 0:01:10.6]} 43... Kf7 {[%clk 0:00:07.1]} 44. Ke2
{[%clk 0:01:08.9]} 44... Ke7 {[%clk 0:00:06.7]} 45. b4 {[%clk 0:01:07.6]} 45...
Kd6 {[%clk 0:00:05.9]} 46. Nb3 {[%clk 0:01:06.8]} 46... Kc6 {[%clk 0:00:04.9]}
47. Nxd4+ {[%clk 0:01:05.1]} 47... Kd5 {[%clk 0:00:03.1]} 48. c3 {[%clk
0:01:02.2]} 1-0

[Event "Live Chess"]
[Site "Chess.com"]
[Date "2024.06.01"]
[Round "-"]
[White "RomanKifliuk"]
[Black "Dhaydon19"]
[Result "0-1"]
[WhiteElo "2353"]
[BlackElo "2675"]
[TimeControl "300"]
[EndTime "10:57:20 PDT"]
[Termination "Dhaydon19 won by resignation"]

1. e4 {[%clk 0:04:49.9]} 1... e6 {[%clk 0:04:57.8]} 2. d4 {[%clk 0:04:48.4]}
2... d5 {[%clk 0:04:57.3]} 3. Nc3 {[%clk 0:04:47.9]} 3... dxe4 {[%clk
0:04:56.6]} 4. Nxe4 {[%clk 0:04:46.7]} 4... Be7 {[%clk 0:04:56.3]} 5. Nf3 {[%clk
0:04:45.5]} 5... Nd7 {[%clk 0:04:56]} 6. Bd3 {[%clk 0:04:44.2]} 6... Ngf6 {[%clk
0:04:55.6]} 7. Nxf6+ {[%clk 0:04:42.7]} 7... Nxf6 {[%clk 0:04:54.3]} 8. Bg5
{[%clk 0:04:42]} 8... c5 {[%clk 0:04:53.2]} 9. dxc5 {[%clk 0:04:40.5]} 9... Qa5+
{[%clk 0:04:51.8]} 10. Bd2 {[%clk 0:04:38.3]} 10... Qxc5 {[%clk 0:04:51]} 11.
O-O {[%clk 0:04:36]} 11... Bd7 {[%clk 0:04:50]} 12. Bc3 {[%clk 0:04:30.1]} 12...
Bc6 {[%clk 0:04:48.2]} 13. Ne5 {[%clk 0:04:28.8]} 13... Rd8 {[%clk 0:04:47.4]}
14. Nxc6 {[%clk 0:04:27.2]} 14... Qxc6 {[%clk 0:04:46.4]} 15. Qe2 {[%clk
0:04:25.3]} 15... a6 {[%clk 0:04:44.9]} 16. Rad1 {[%clk 0:04:23.2]} 16... O-O
{[%clk 0:04:43.1]} 17. Qe5 {[%clk 0:04:15.7]} 17... Rd5 {[%clk 0:04:40.3]} 18.
Qg3 {[%clk 0:04:04.6]} 18... Rd7 {[%clk 0:04:33]} 19. Rde1 {[%clk 0:03:44.3]}
19... Rfd8 {[%clk 0:04:30.5]} 20. Re4 {[%clk 0:03:37]} 20... g6 {[%clk
0:04:23.8]} 21. Rh4 {[%clk 0:03:24.2]} 21... Rd5 {[%clk 0:04:12.7]} 22. Qh3
{[%clk 0:03:13.9]} 22... Nh5 {[%clk 0:03:59.7]} 23. Rc4 {[%clk 0:03:04.3]} 23...
Qd7 {[%clk 0:03:54.5]} 24. g4 {[%clk 0:02:46.3]} 24... Ng7 {[%clk 0:03:50.8]}
25. Qh6 {[%clk 0:02:44.1]} 25... Bf8 {[%clk 0:03:49.6]} 26. Qe3 {[%clk
0:02:29.4]} 26... e5 {[%clk 0:03:46.4]} 27. Bxe5 {[%clk 0:02:16]} 27... Re8
{[%clk 0:03:44.6]} 28. Qg3 {[%clk 0:02:13.6]} 28... Rdxe5 {[%clk 0:03:43.1]} 0-1

[Event "Live Chess"]
[Site "Chess.com"]
[Date "2024.06.01"]
[Round "-"]
[White "GEMdzq"]
[Black "Bob2pen"]
[Result "1-0"]
[WhiteElo "2323"]
[BlackElo "1856"]
[TimeControl "300"]
[EndTime "10:57:20 PDT"]
[Termination "GEMdzq won by resignation"]

1. e4 {[%clk 0:04:57.3]} 1... e6 {[%clk 0:04:58.9]} 2. d4 {[%clk 0:04:56.5]}
2... d5 {[%clk 0:04:58.1]} 3. Nc3 {[%clk 0:04:56.2]} 3... Bb4 {[%clk 0:04:56.6]}
4. e5 {[%clk 0:04:54.9]} 4... Ne7 {[%clk 0:04:55.6]} 5. Bd2 {[%clk 0:04:53]}
5... b6 {[%clk 0:04:53.8]} 6. Qg4 {[%clk 0:04:47.5]} 6... Nf5 {[%clk 0:04:48.1]}
7. Nf3 {[%clk 0:04:26.2]} 7... Ba6 {[%clk 0:04:44.5]} 8. a3 {[%clk 0:03:51.6]}
8... Bxc3 {[%clk 0:04:35.6]} 9. Bxc3 {[%clk 0:03:51.5]} 9... Bxf1 {[%clk
0:04:34.1]} 10. Rxf1 {[%clk 0:03:50]} 10... c5 {[%clk 0:04:31.3]} 11. dxc5
{[%clk 0:03:47.6]} 11... bxc5 {[%clk 0:04:29.9]} 12. Qa4+ {[%clk 0:03:45.9]}
12... Qd7 {[%clk 0:04:25.6]} 13. Qxd7+ {[%clk 0:03:38.9]} 13... Nxd7 {[%clk
0:04:23.2]} 14. g4 {[%clk 0:03:36.8]} 14... Ne7 {[%clk 0:04:18.1]} 15. O-O-O
{[%clk 0:03:34.7]} 15... Nc6 {[%clk 0:04:16.4]} 16. b4 {[%clk 0:03:33.2]} 16...
d4 {[%clk 0:04:14.3]} 17. Bb2 {[%clk 0:03:32.3]} 17... cxb4 {[%clk 0:04:06.8]}
18. Nxd4 {[%clk 0:03:23.8]} 18... Nxd4 {[%clk 0:04:02]} 19. Rxd4 {[%clk
0:03:22.3]} 19... bxa3 {[%clk 0:04:00.4]} 20. Bxa3 {[%clk 0:03:21.3]} 20...
O-O-O {[%clk 0:03:56.2]} 21. Bd6 {[%clk 0:03:17.6]} 21... Nb6 {[%clk 0:03:52.4]}
22. c4 {[%clk 0:03:06.1]} 22... Rd7 {[%clk 0:03:49.8]} 23. c5 {[%clk 0:03:05]}
23... Nd5 {[%clk 0:03:42]} 24. Kd2 {[%clk 0:03:01]} 24... Rb7 {[%clk 0:03:39.7]}
25. Ra1 {[%clk 0:02:52.8]} 25... Kd7 {[%clk 0:03:33.6]} 26. Rc4 {[%clk
0:02:46.2]} 26... Rc8 {[%clk 0:03:31.7]} 27. Ra6 {[%clk 0:02:44.2]} 27... Rc6
{[%clk 0:03:30.4]} 28. Rca4 {[%clk 0:02:42.1]} 28... Rxa6 {[%clk 0:03:27.8]} 29.
Rxa6 {[%clk 0:02:42]} 29... Rb2+ {[%clk 0:03:23.2]} 30. Kc1 {[%clk 0:02:37]}
30... Rb7 {[%clk 0:03:20.4]} 31. c6+ {[%clk 0:02:35.9]} 1-0

[Event "Live Chess"]
[Site "Chess.com"]
[Date "2024.06.01"]
[Round "-"]
[White "SergiiA"]
[Black "Bunny55"]
[Result "1-0"]
[WhiteElo "1537"]
[BlackElo "1179"]
[TimeControl "300"]
[EndTime "10:57:23 PDT"]
[Termination "SergiiA won by resignation"]

1. c4 {[%clk 0:04:58.6]} 1... Nf6 {[%clk 0:04:56]} 2. Nc3 {[%clk 0:04:58.1]}
2... g6 {[%clk 0:04:55]} 3. e4 {[%clk 0:04:57.2]} 3... d6 {[%clk 0:04:52.5]} 4.
g3 {[%clk 0:04:56]} 4... Bg7 {[%clk 0:04:51.9]} 5. Bg2 {[%clk 0:04:55.6]} 5...
O-O {[%clk 0:04:51.2]} 6. Nge2 {[%clk 0:04:55.3]} 6... c6 {[%clk 0:04:50.5]} 7.
O-O {[%clk 0:04:54.6]} 7... Nbd7 {[%clk 0:04:49.5]} 8. d4 {[%clk 0:04:53]} 8...
e5 {[%clk 0:04:42.3]} 9. d5 {[%clk 0:04:52.2]} 9... h6 {[%clk 0:04:36.7]} 10.
Be3 {[%clk 0:04:51]} 10... Nh7 {[%clk 0:04:32.1]} 11. Qd2 {[%clk 0:04:46.8]}
11... g5 {[%clk 0:04:30.6]} 12. f4 {[%clk 0:04:39.7]} 12... exf4 {[%clk
0:04:27.8]} 13. gxf4 {[%clk 0:04:38.6]} 13... Nc5 {[%clk 0:04:23.2]} 14. Rae1
{[%clk 0:04:33]} 14... Re8 {[%clk 0:04:19.8]} 15. Bd4 {[%clk 0:04:20.4]} 15...
Bxd4+ {[%clk 0:04:14.4]} 16. Qxd4 {[%clk 0:04:19.4]} 16... Qf6 {[%clk 0:04:13]}
17. Qxf6 {[%clk 0:04:14.5]} 17... Nxf6 {[%clk 0:04:10.5]} 18. fxg5 {[%clk
0:04:14.1]} 18... hxg5 {[%clk 0:04:08.5]} 19. Rxf6 {[%clk 0:04:10.2]} 19... Nd3
{[%clk 0:04:05.9]} 20. Rb1 {[%clk 0:04:04.5]} 20... Kg7 {[%clk 0:04:01.8]} 21.
Rff1 {[%clk 0:03:59]} 21... Rh8 {[%clk 0:03:56.2]} 22. b3 {[%clk 0:03:43.9]}
22... Rh7 {[%clk 0:03:54.7]} 23. Ng3 {[%clk 0:03:42.9]} 23... Bd7 {[%clk
0:03:52.9]} 24. Nf5+ {[%clk 0:03:39.3]} 24... Kg6 {[%clk 0:03:48.9]} 25. Rbd1
{[%clk 0:03:30.4]} 25... Rah8 {[%clk 0:03:48.8]} 26. Rxd3 {[%clk 0:03:25.7]}
26... Bxf5 {[%clk 0:03:33.2]} 27. exf5+ {[%clk 0:03:21]} 27... Kf6 {[%clk
0:03:32]} 28. dxc6 {[%clk 0:03:18.7]} 28... bxc6 {[%clk 0:03:30]} 29. Bxc6
{[%clk 0:03:17.5]} 29... Rxh2 {[%clk 0:03:28.3]} 30. Bg2 {[%clk 0:03:12.2]} 1-0

[Event "Live Chess"]
[Site "Chess.com"]
[Date "2024.06.01"]
[Round "-"]
[White "Nazar-Makarchuk"]
[Black "sshamil"]
[Result "0-1"]
[WhiteElo "1450"]
[BlackElo "1685"]
[TimeControl "300"]
[EndTime "10:57:44 PDT"]
[Termination "sshamil won by resignation"]

1. e4 {[%clk 0:04:58.2]} 1... b6 {[%clk 0:04:58.9]} 2. Nf3 {[%clk 0:04:57.6]}
2... Bb7 {[%clk 0:04:58.3]} 3. Nc3 {[%clk 0:04:56.2]} 3... Nc6 {[%clk
0:04:57.5]} 4. d4 {[%clk 0:04:55.6]} 4... e6 {[%clk 0:04:55.3]} 5. d5 {[%clk
0:04:54.4]} 5... exd5 {[%clk 0:04:53.9]} 6. Qxd5 {[%clk 0:04:53.6]} 6... Na5
{[%clk 0:04:51.2]} 7. Qe5+ {[%clk 0:04:45.2]} 7... Ne7 {[%clk 0:04:48.6]} 8. Bf4
{[%clk 0:04:41.3]} 8... d6 {[%clk 0:04:45.9]} 9. Qg5 {[%clk 0:04:28.3]} 9... h6
{[%clk 0:04:42]} 10. Qg3 {[%clk 0:04:27]} 10... g6 {[%clk 0:04:35.5]} 11. Bb5+
{[%clk 0:04:26.2]} 11... c6 {[%clk 0:04:29.4]} 12. Bd3 {[%clk 0:04:24.8]} 12...
d5 {[%clk 0:04:20.7]} 13. exd5 {[%clk 0:04:23]} 13... Nxd5 {[%clk 0:04:16.2]}
14. Nxd5 {[%clk 0:04:21.4]} 14... cxd5 {[%clk 0:04:14.2]} 15. Bc7 {[%clk
0:04:18.2]} 15... Qe7+ {[%clk 0:04:06.5]} 16. Qe5 {[%clk 0:04:16.1]} 16... Bg7
{[%clk 0:04:00.7]} 17. Qxe7+ {[%clk 0:04:14.7]} 17... Kxe7 {[%clk 0:03:59.7]}
18. c3 {[%clk 0:04:11.2]} 18... Kd7 {[%clk 0:03:58.2]} 19. Bg3 {[%clk
0:04:09.9]} 19... Nc6 {[%clk 0:03:55.3]} 20. O-O {[%clk 0:04:08.9]} 20... Rae8
{[%clk 0:03:52.7]} 21. Rfe1 {[%clk 0:04:07.6]} 21... g5 {[%clk 0:03:45.4]} 22.
Ne5+ {[%clk 0:04:04.4]} 22... Nxe5 {[%clk 0:03:42.1]} 23. Bxe5 {[%clk 0:04:03]}
23... Bxe5 {[%clk 0:03:40.9]} 24. g3 {[%clk 0:04:00.1]} 24... h5 {[%clk
0:03:38.7]} 25. Bf5+ {[%clk 0:03:58.3]} 25... Kc7 {[%clk 0:03:36.4]} 26. Rad1
{[%clk 0:03:52.2]} 26... h4 {[%clk 0:03:34.7]} 27. Rd2 {[%clk 0:03:50.9]} 27...
hxg3 {[%clk 0:03:33.6]} 28. fxg3 {[%clk 0:03:46]} 28... f6 {[%clk 0:03:28.2]}
29. Rde2 {[%clk 0:03:38.2]} 29... d4 {[%clk 0:03:24.8]} 30. cxd4 {[%clk
0:03:36.1]} 30... Bxd4+ {[%clk 0:03:23.7]} 31. Kf1 {[%clk 0:03:33.5]} 31... Ba6
{[%clk 0:03:22.2]} 32. g4 {[%clk 0:03:29.8]} 32... Bxe2+ {[%clk 0:03:19.3]} 33.
Rxe2 {[%clk 0:03:29.1]} 33... Rxe2 {[%clk 0:03:18.2]} 34. Kxe2 {[%clk
0:03:28.7]} 34... Bxb2 {[%clk 0:03:17]} 0-1